fUSD/lending_fUSD_20240331
["ID","MTS","AMOUNT","RATE_DAILY","PERIOD"]
[321145454,1711908701953,-500.0,0.00059726,120]
[321145455,1711908701963,-500.0,0.00059726,120]
[321145456,1711908701974,-980.98,0.00059726,120]
[321145457,1711908701984,-529.82,0.00059726,120]
[321145458,1711908701995,-691.41,0.00059726,120]
[321145459,1711908702004,-535.03,0.00059726,120]
[321145460,1711908702013,-834.12,0.00059726,120]
[321145461,1711908702024,-500.0,0.00059726,120]
[321145462,1711908702033,-597.15,0.00059726,120]
[321145463,1711908702042,-2161.52,0.00059726,120]
[321145464,1711908702052,-523.05,0.00059726,120]
[321145465,1711908702061,-500.0,0.00059726,120]
[321145466,1711908702071,-851.6,0.00059726,120]
[321145467,1711908702081,-500.0,0.00059726,120]
[321145468,1711908702091,-500.0,0.00059726,120]
[321145469,1711908702102,-1120.95,0.00059726,120]
[321145470,1711908702112,-500.0,0.00059726,120]
[321145471,1711908702121,-13825.51,0.00059726,120]
[321145472,1711908702130,-4835.83,0.00059726,120]
[321145473,1711908702140,-645.15,0.00059726,120]
[321145474,1711908702150,-511.28,0.00059726,120]
[321145475,1711908702160,-1596.31,0.00059726,120]
[321145476,1711908702170,-810.88,0.00059726,120]
[321145477,1711908702179,-10458.37,0.00059726,120]
[321145478,1711908702189,-1071.85,0.00059726,120]
[321145479,1711908702199,-520.56,0.00059726,120]
[321145480,1711908702208,-515.51,0.00059726,120]
[321145481,1711908702219,-956.86,0.00059726,120]
[321145482,1711908702228,-1008.24,0.00059726,120]
[321145483,1711908702237,-514.26,0.00059726,120]
[321145484,1711908702246,-500.0,0.00059726,120]
[321145485,1711908702255,-1713.58,0.00059726,21]
[321145486,1711908702265,-761.78,0.00059726,120]
[321145487,1711908702274,-647.03,0.00059726,120]
[321145488,1711908702284,-1017.54,0.00059726,120]
[321145489,1711908702293,-1083.62,0.00059726,120]
[321145490,1711908702303,-1151.56,0.00059726,120]
[321145491,1711908702313,-705.26,0.00059726,120]
[321145492,1711908702323,-1812.14,0.00059726,120]
[321145493,1711908702334,-3632.67,0.00059726,120]
[321145494,1711908702344,-777.77,0.00059726,120]
[321145495,1711908702354,-267.23,0.00059726,120]
[321145496,1711908702366,-2065.04,0.00059726,120]
[321145497,1711908702376,-500.0,0.00059726,120]
[321145498,1711908702386,-500.0,0.00059726,120]
[321145499,1711908702396,-1086.78,0.00059726,120]
[321145500,1711908702407,-1708.94,0.00059726,120]
[321145501,1711908702417,-1274.25,0.00059726,120]
[321145502,1711908702427,-10405.37,0.00059726,120]
[321145503,1711908702438,-2816.51,0.00059726,120]
[321145504,1711908702448,-500.0,0.00059726,120]
[321145505,1711908702458,-587.31,0.00059726,120]
[321145506,1711908702468,-574.2,0.00059726,120]
[321145507,1711908702478,-2188.08,0.00059726,120]
[321145508,1711908702489,-505.55,0.00059726,120]
[321145509,1711908702500,-819.73,0.00059726,120]
[321145510,1711908702510,-568.79968626,0.00059726,120]
[321145511,1711908702521,-4649.04,0.00059726,120]
[321145512,1711908702531,-500.0,0.00059726,120]
[321145513,1711908702542,-707.12,0.00059726,120]
[321145514,1711908702552,-2267.81,0.00059726,120]
[321145515,1711908702562,-5133.4,0.00059726,120]
[321145516,1711908702572,-1480.3,0.00059726,120]
[321145517,1711908702582,-805.22,0.00059726,120]
[321145518,1711908702593,-1427.42,0.00059726,120]
[321145519,1711908702603,-253.37,0.00059726,120]
[321145520,1711908702614,-2273.08,0.00059726,120]
[321145521,1711908702624,-6661.02,0.00059726,120]
[321145522,1711908702634,-4444.01,0.00059726,120]
[321145523,1711908702645,-642.39,0.00059726,120]
[321145524,1711908702656,-572.95,0.00059726,120]
[321145525,1711908702666,-6431.04,0.00059726,120]
[321145526,1711908702676,-2363.15,0.00059726,120]
[321145527,1711908702687,-899.44,0.00059726,120]
[321145528,1711908702700,-1651.19,0.00059726,120]
[321145529,1711908702711,-512.64,0.00059726,120]
[321145530,1711908702722,-1275.53,0.00059726,120]
[321145531,1711908702732,-4862.95,0.00059726,120]
[321145532,1711908702744,-1488.24,0.00059726,120]
[321145533,1711908702755,-816.26,0.00059726,120]
[321145534,1711908702765,-1110.2,0.00059726,120]
[321145535,1711908702777,-669.65,0.00059726,120]
[321145536,1711908702787,-3231.72,0.00059726,120]
[321145537,1711908702798,-642.72,0.00059726,120]
[321145538,1711908702809,-705.23,0.00059726,120]
[321145539,1711908702819,-713.19,0.00059726,120]
[321145540,1711908702830,-2389.97,0.00059726,120]
[321145541,1711908702842,-648.84,0.00059726,120]
[321145542,1711908702851,-1994.62,0.00059726,120]
[321145543,1711908702861,-2619.63,0.00059726,120]
[321145544,1711908702872,-4661.97,0.00059726,120]
[321145545,1711908702881,-3992.88,0.00059726,120]
[321145546,1711908702891,-1467.45,0.00059726,120]
[321145547,1711908702902,-5808.05462574,0.00059726,120]
[321145548,1711908703162,-2005.67537426,0.00059726,120]
[321145549,1711908703171,-2947.07,0.00059726,120]
[321145550,1711908703182,-635.56,0.00059726,120]
[321145551,1711908703191,-595.08,0.00059726,120]
[321145552,1711908703201,-1656.13,0.00059726,120]
[321145553,1711908703210,-697.65,0.00059726,120]
[321145554,1711908703220,-562.82407242,0.00059726,120]
[321145555,1711908703229,-709.24,0.00059726,120]
[321145556,1711908703239,-567.42,0.00059726,120]
[321145557,1711908703248,-729.76,0.00059726,120]
[321145558,1711908703258,-129999.999999,0.0005977,120]
[321145559,1711908703267,-1551.67,0.00059784,120]
[321145560,1711908703278,-5000.0,0.00059885,90]
[321145561,1711908703287,-14284.87709139,0.0005998,120]
[321145562,1711908703296,-151.0,0.00059998,120]
[321145563,1711908703305,-500.0,0.00059999,120]
[321145564,1711908703315,-664.54,0.00059999,120]
[321145565,1711908703325,-1004.03,0.00059999,120]
[321145566,1711908703335,-500.0,0.00059999,120]
[321145567,1711908703348,-804.28,0.00059999,120]
[321145568,1711908703360,-914.67,0.00059999,120]
[321145569,1711908703370,-510.44,0.00059999,120]
[321145570,1711908703379,-1062.57,0.00059999,120]
[321145571,1711908703390,-500.0,0.00059999,120]
[321145572,1711908703400,-500.0,0.00059999,120]
[321145573,1711908703410,-980.98,0.00059999,120]
[321145574,1711908703420,-529.82,0.00059999,120]
[321145575,1711908703431,-691.41,0.00059999,120]
[321145576,1711908703441,-535.03,0.00059999,120]
[321145577,1711908703451,-834.12,0.00059999,120]
[321145578,1711908703462,-500.0,0.00059999,120]
[321145579,1711908703472,-597.15,0.00059999,120]
[321145580,1711908703482,-2161.52,0.00059999,120]
[321145581,1711908703492,-523.05,0.00059999,120]
[321145582,1711908703503,-524.27,0.00059999,120]
[321145583,1711908703514,-851.6,0.00059999,120]
[321145584,1711908703524,-500.0,0.00059999,120]
[321145585,1711908703535,-500.0,0.00059999,120]
[321145586,1711908703544,-1120.95,0.00059999,120]
[321145587,1711908703555,-500.0,0.00059999,120]
[321145588,1711908703565,-13825.51,0.00059999,120]
[321145589,1711908703575,-4835.83,0.00059999,120]
[321145590,1711908703585,-645.15,0.00059999,120]
[321145591,1711908703594,-1596.31,0.00059999,120]
[321145592,1711908703604,-810.88,0.00059999,120]
[321145593,1711908703615,-10458.37,0.00059999,120]
[321145594,1711908703625,-1071.85,0.00059999,120]
[321145595,1711908703635,-520.56,0.00059999,120]
[321145596,1711908703646,-515.51,0.00059999,120]
[321145597,1711908703657,-956.86,0.00059999,120]
[321145598,1711908703667,-1008.24,0.00059999,120]
[321145599,1711908703678,-514.26,0.00059999,120]
[321145600,1711908703689,-500.0,0.00059999,120]
[321145601,1711908703699,-1713.58,0.00059999,21]
[321145602,1711908703712,-647.03,0.00059999,120]
[321145603,1711908703723,-761.78,0.00059999,120]
[321145604,1711908703732,-1017.54,0.00059999,120]
[321145605,1711908703744,-1083.62,0.00059999,120]
[321145606,1711908703756,-1151.56,0.00059999,120]
[321145607,1711908703767,-705.26,0.00059999,120]
[321145608,1711908703776,-1812.14,0.00059999,120]
[321145609,1711908703788,-3632.67,0.00059999,120]
[321145610,1711908703935,-777.77,0.00059999,120]
[321145611,1711908703946,-2065.04,0.00059999,120]
[321145612,1711908703956,-500.0,0.00059999,120]
[321145613,1711908703966,-500.0,0.00059999,120]
[321145614,1711908703976,-1086.78,0.00059999,120]
[321145615,1711908703985,-1708.94,0.00059999,120]
[321145616,1711908703995,-1274.25,0.00059999,120]
[321145617,1711908704004,-10405.37,0.00059999,120]
[321145618,1711908704013,-2816.51,0.00059999,120]
[321145619,1711908704023,-500.0,0.00059999,120]
[321145620,1711908704032,-587.31,0.00059999,120]
[321145621,1711908704041,-574.2,0.00059999,120]
[321145622,1711908704050,-2188.08,0.00059999,120]
[321145623,1711908704060,-505.55,0.00059999,120]
[321145624,1711908704069,-819.73,0.00059999,120]
[321145625,1711908704078,-4649.04,0.00059999,120]
[321145626,1711908704087,-500.0,0.00059999,120]
[321145627,1711908704096,-707.12,0.00059999,120]
[321145628,1711908704105,-2267.81,0.00059999,120]
[321145629,1711908704114,-5133.4,0.00059999,120]
[321145630,1711908704123,-1480.3,0.00059999,120]
[321145631,1711908704132,-805.22,0.00059999,120]
[321145632,1711908704141,-1427.42,0.00059999,120]
[321145633,1711908704151,-2273.08,0.00059999,120]
[321145634,1711908704160,-6661.02,0.00059999,120]
[321145635,1711908704169,-4444.01,0.00059999,120]
[321145636,1711908704178,-642.39,0.00059999,120]
[321145637,1711908704188,-572.95,0.00059999,120]
[321145638,1711908704197,-6431.04,0.00059999,120]
[321145639,1711908704207,-2363.15,0.00059999,120]
[321145640,1711908704217,-1611.27,0.00059999,120]
[321145641,1711908704226,-899.44,0.00059999,120]
[321145642,1711908704235,-1651.19,0.00059999,120]
[321145643,1711908704244,-512.64,0.00059999,120]
[321145644,1711908704253,-1275.53,0.00059999,120]
[321145645,1711908704262,-4862.95,0.00059999,120]
[321145646,1711908704272,-1488.24,0.00059999,120]
[321145647,1711908704282,-816.26,0.00059999,120]
[321145648,1711908704292,-1110.2,0.00059999,120]
[321145649,1711908704301,-669.65,0.00059999,120]
[321145650,1711908704312,-3231.72,0.00059999,120]
[321145651,1711908704322,-642.72,0.00059999,120]
[321145652,1711908704331,-705.23,0.00059999,120]
[321145653,1711908704341,-713.19,0.00059999,120]
[321145654,1711908704351,-2389.97,0.00059999,120]
[321145655,1711908704361,-648.84,0.00059999,120]
[321145656,1711908704371,-1994.62,0.00059999,120]
[321145657,1711908704381,-2619.63,0.00059999,120]
[321145658,1711908704390,-4661.97,0.00059999,120]
[321145659,1711908704399,-3992.88,0.00059999,120]
[321145660,1711908704408,-1467.45,0.00059999,120]
[321145661,1711908704417,-7813.73,0.00059999,120]
[321145662,1711908704427,-2947.07,0.00059999,120]
[321145663,1711908704437,-635.56,0.00059999,120]
[321145664,1711908704447,-595.08,0.00059999,120]
[321145665,1711908704456,-1656.13,0.00059999,120]
[321145666,1711908704465,-697.65,0.00059999,120]
[321145667,1711908704474,-709.24,0.00059999,120]
[321145668,1711908704483,-567.42,0.00059999,120]
[321145669,1711908704492,-729.76,0.00059999,120]
[321145670,1711908704502,-500.0,0.0006,10]
[321145671,1711908704511,-897.4007763,0.0006,120]
[321145672,1711908704520,-103935.52218313,0.0006,120]
[321145673,1711908704529,-42417.27189224,0.0006,120]
[321145674,1711908704538,-156.26302867,0.0006,60]
[321145675,1711908704547,-1495.10162571,0.0006,7]
[321145676,1711908704556,-9894.08355956,0.0006,120]
[321145677,1711908704565,-481966.65121381,0.0006,120]
[321145678,1711908704574,-575.55567126,0.0006,90]
[321145679,1711908704583,-3083.87246425,0.0006,7]
[321145680,1711908704592,-1141.38907819,0.0006,7]
[321145681,1711908704602,-2597.27188107,0.0006,120]
[321145682,1711908704612,-999.999999,0.0006,14]
[321145683,1711908704621,-1545.73149139,0.0006,120]
[321145684,1711908704630,-386.95784931,0.0006,120]
[321145685,1711908704640,-400.0,0.0006,7]
[321145686,1711908704649,-522.57901722,0.0006,30]
[321145687,1711908704658,-881.02025278,0.0006,120]
[321145688,1711908704668,-66319.72585048,0.0006,120]
[321145689,1711908704677,-1350.0,0.0006,120]
[321145690,1711908704687,-1900.0,0.0006,120]
[321145691,1711908704697,-32794.79623228,0.0006,120]
[321145692,1711908704707,-156.45889321,0.0006,120]
[321145693,1711908704716,-10000.0,0.0006,4]
[321145694,1711908704725,-10000.0,0.0006,60]
[321145695,1711908704735,-6409.58022133,0.0006,34]
[321145696,1711908704744,-1500.0,0.0006,60]
[321145697,1711908704754,-186.362632,0.0006,120]
[321145698,1711908704763,-186.362632,0.0006,120]
[321145699,1711908704773,-1000.12345678,0.0006,120]
[321145700,1711908704782,-151.0,0.00060164,120]
[321145701,1711908704791,-500.0,0.00060273,120]
[321145702,1711908704800,-500.0,0.00060273,120]
[321145703,1711908704809,-500.0,0.00060273,120]
[321145704,1711908704820,-500.0,0.00060273,120]
[321145705,1711908704830,-500.0,0.00060273,120]
[321145706,1711908704841,-517.83175545,0.00060273,120]
[321145707,1711908704851,-500.0,0.00060273,120]
[321145708,1711908704861,-666.0,0.00060273,120]
[321145709,1711908704871,-664.54,0.00060273,120]
[321145710,1711908704880,-2000.0,0.00060273,120]
[321145711,1711908704889,-1004.03,0.00060273,120]
[321145712,1711908704899,-500.0,0.00060273,120]
[321145713,1711908704909,-804.28,0.00060273,120]
[321145714,1711908704919,-914.67,0.00060273,120]
[321145715,1711908704928,-510.44,0.00060273,120]
[321145716,1711908704938,-1062.57,0.00060273,120]
[321145717,1711908704948,-500.0,0.00060273,120]
[321145718,1711908704957,-500.0,0.00060273,120]
[321145719,1711908704967,-980.98,0.00060273,120]
[321145720,1711908704976,-529.82,0.00060273,120]
[321145721,1711908704986,-691.41,0.00060273,120]
[321145722,1711908704995,-535.03,0.00060273,120]
[321145723,1711908705005,-834.12,0.00060273,120]
[321145724,1711908705015,-157.4,0.00060273,120]
[321145725,1711908705024,-597.15,0.00060273,120]
[321145726,1711908705033,-2161.52,0.00060273,120]
[321145727,1711908705043,-523.05,0.00060273,120]
[321145728,1711908705053,-988.0,0.00060273,120]
[321145729,1711908705063,-851.6,0.00060273,120]
[321145730,1711908705072,-500.0,0.00060273,120]
[321145731,1711908705082,-401.04,0.00060273,120]
[321145732,1711908705091,-1120.95,0.00060273,120]
[321145733,1711908705101,-500.0,0.00060273,120]
[321145734,1711908705111,-13825.51,0.00060273,120]
[321145735,1711908705121,-4835.83,0.00060273,120]
[321145736,1711908705131,-645.15,0.00060273,120]
[321145737,1711908705141,-1596.31,0.00060273,120]
[321145738,1711908705150,-810.88,0.00060273,120]
[321145739,1711908705160,-10458.37,0.00060273,120]
[321145740,1711908705169,-1071.85,0.00060273,120]
[321145741,1711908705178,-520.56,0.00060273,120]
[321145742,1711908705188,-515.51,0.00060273,120]
[321145743,1711908705198,-956.86,0.00060273,120]
[321145744,1711908705207,-1008.24,0.00060273,120]
[321145745,1711908705217,-514.26,0.00060273,120]
[321145746,1711908705226,-500.0,0.00060273,120]
[321145747,1711908705235,-1713.58,0.00060273,21]
[321145748,1711908705245,-647.03,0.00060273,120]
[321145749,1711908705254,-761.78,0.00060273,120]
[321145750,1711908705263,-1017.54,0.00060273,120]
[321145751,1711908705272,-1083.62,0.00060273,120]
[321145752,1711908705281,-1151.56,0.00060273,120]
[321145753,1711908705290,-705.26,0.00060273,120]
[321145754,1711908705299,-1812.14,0.00060273,120]
[321145755,1711908705308,-3632.67,0.00060273,120]
[321145756,1711908705317,-777.77,0.00060273,120]
[321145757,1711908705326,-2065.04,0.00060273,120]
[321145758,1711908705335,-500.0,0.00060273,120]
[321145759,1711908705344,-589.1240055,0.00060273,120]
[321145760,1711908705353,-1086.78,0.00060273,120]
[321145761,1711908705361,-1708.94,0.00060273,120]
[321145762,1711908705370,-1274.25,0.00060273,120]
[321145763,1711908705379,-10405.37,0.00060273,120]
[321145764,1711908705388,-2816.51,0.00060273,120]
[321145765,1711908705397,-500.0,0.00060273,120]
[321145766,1711908705406,-587.31,0.00060273,120]
[321145767,1711908705415,-574.2,0.00060273,120]
[321145768,1711908705423,-2188.08,0.00060273,120]
[321145769,1711908705433,-505.55,0.00060273,120]
[321145770,1711908705442,-819.73,0.00060273,120]
[321145771,1711908705451,-4649.04,0.00060273,120]
[321145772,1711908705459,-500.0,0.00060273,120]
[321145773,1711908705468,-707.12,0.00060273,120]
[321145774,1711908705477,-2267.81,0.00060273,120]
[321145775,1711908705486,-5133.4,0.00060273,120]
[321145776,1711908705495,-1480.3,0.00060273,120]
[321145777,1711908705504,-805.22,0.00060273,120]
[321145778,1711908705513,-1427.42,0.00060273,120]
[321145779,1711908705523,-2273.08,0.00060273,120]
[321145780,1711908705532,-6661.02,0.00060273,120]
[321145781,1711908705542,-4444.01,0.00060273,120]
[321145782,1711908705553,-642.39,0.00060273,120]
[321145783,1711908705563,-572.95,0.00060273,120]
[321145784,1711908705573,-6431.04,0.00060273,120]
[321145785,1711908705583,-2363.15,0.00060273,120]
[321145786,1711908705592,-1611.27,0.00060273,120]
[321145787,1711908705601,-899.44,0.00060273,120]
[321145788,1711908705610,-1651.19,0.00060273,120]
[321145789,1711908705619,-512.64,0.00060273,120]
[321145790,1711908705629,-1275.53,0.00060273,120]
[321145791,1711908705638,-4862.95,0.00060273,120]
[321145792,1711908705647,-1488.24,0.00060273,120]
[321145793,1711908705656,-816.26,0.00060273,120]
[321145794,1711908705666,-1110.2,0.00060273,120]
[321145795,1711908705676,-669.65,0.00060273,120]
[321145796,1711908705686,-3231.72,0.00060273,120]
[321145797,1711908705695,-642.72,0.00060273,120]
[321145798,1711908705708,-705.23,0.00060273,120]
[321145799,1711908705717,-713.19,0.00060273,120]
[321145800,1711908705726,-2389.97,0.00060273,120]
[321145801,1711908705736,-648.84,0.00060273,120]
[321145802,1711908705746,-1994.62,0.00060273,120]
[321145803,1711908705756,-2619.63,0.00060273,120]
[321145804,1711908705765,-4661.97,0.00060273,120]
[321145805,1711908705773,-3992.88,0.00060273,120]
[321145806,1711908705784,-1467.45,0.00060273,120]
[321145807,1711908705794,-7813.73,0.00060273,120]
[321145808,1711908705803,-2947.07,0.00060273,120]
[321145809,1711908705813,-635.56,0.00060273,120]
[321145810,1711908705822,-595.08,0.00060273,120]
[321145811,1711908705832,-1656.13,0.00060273,120]
[321145812,1711908705842,-697.65,0.00060273,120]
[321145813,1711908705852,-709.24,0.00060273,120]
[321145814,1711908705861,-567.42,0.00060273,120]
[321145815,1711908705872,-729.76,0.00060273,120]
[321145816,1711908705881,-1011.83702887,0.000603,120]
[321145817,1711908705890,-1625.0,0.000603,30]
[321145818,1711908705900,-819.28870137,0.000603,30]
[321145819,1711908705909,-493.0,0.000603,30]
[321145820,1711908705918,-832.0,0.000603,30]
[321145821,1711908705927,-523.98609428,0.000603,30]
[321145822,1711908705937,-292.52630791,0.00060508,39]
[321145823,1711908705946,-500.0,0.00060547,120]
[321145824,1711908705955,-664.54,0.00060547,120]
[321145825,1711908705964,-1004.03,0.00060547,120]
[321145826,1711908705974,-491.37,0.00060547,120]
[321145827,1711908705983,-804.28,0.00060547,120]
[321145828,1711908705992,-914.67,0.00060547,120]
[321145829,1711908706002,-510.44,0.00060547,120]
[321145830,1711908706011,-1062.57,0.00060547,120]
[321145831,1711908706021,-500.0,0.00060547,120]
[321145832,1711908706159,-500.0,0.00060547,120]
[321145833,1711908706169,-980.98,0.00060547,120]
[321145834,1711908706179,-529.82,0.00060547,120]
[321145835,1711908706188,-691.41,0.00060547,120]
[321145836,1711908706198,-535.03,0.00060547,120]
[321145837,1711908706207,-834.12,0.00060547,120]
[321145838,1711908706217,-597.15,0.00060547,120]
[321145839,1711908706226,-2161.52,0.00060547,120]
[321145840,1711908706235,-523.05,0.00060547,120]
[321145841,1711908706245,-851.6,0.00060547,120]
[321145842,1711908706254,-1120.95,0.00060547,120]
[321145843,1711908706263,-500.0,0.00060547,120]
[321145844,1711908706272,-13825.51,0.00060547,120]
[321145845,1711908706281,-4835.83,0.00060547,120]
[321145846,1711908706291,-645.15,0.00060547,120]
[321145847,1711908706300,-1596.31,0.00060547,120]
[321145848,1711908706309,-810.88,0.00060547,120]
[321145849,1711908706318,-10458.37,0.00060547,120]
[321145850,1711908706328,-1071.85,0.00060547,120]
[321145851,1711908706337,-520.56,0.00060547,120]
[321145852,1711908706346,-515.51,0.00060547,120]
[321145853,1711908706356,-956.86,0.00060547,120]
[321145854,1711908706365,-1008.24,0.00060547,120]
[321145855,1711908706374,-514.26,0.00060547,120]
[321145856,1711908706383,-500.0,0.00060547,120]
[321145857,1711908706392,-1713.58,0.00060547,21]
[321145858,1711908706401,-761.78,0.00060547,120]
[321145859,1711908706410,-647.03,0.00060547,120]
[321145860,1711908706420,-1017.54,0.00060547,120]
[321145861,1711908706429,-1083.62,0.00060547,120]
[321145862,1711908706438,-1151.56,0.00060547,120]
[321145863,1711908706448,-705.26,0.00060547,120]
[321145864,1711908706457,-1812.14,0.00060547,120]
[321145865,1711908706466,-3632.67,0.00060547,120]
[321145866,1711908706476,-777.77,0.00060547,120]
[321145867,1711908706485,-2065.04,0.00060547,120]
[321145868,1711908706494,-210.24,0.00060547,120]
[321145869,1711908706503,-1086.78,0.00060547,120]
[321145870,1711908706512,-1708.94,0.00060547,120]
[321145871,1711908706521,-1274.25,0.00060547,120]
[321145872,1711908706531,-10405.37,0.00060547,120]
[321145873,1711908706540,-2816.51,0.00060547,120]
[321145874,1711908706550,-279.0,0.00060547,120]
[321145875,1711908706561,-587.31,0.00060547,120]
[321145876,1711908706571,-574.2,0.00060547,120]
[321145877,1711908706581,-2188.08,0.00060547,120]
[321145878,1711908706590,-505.55,0.00060547,120]
[321145879,1711908706600,-819.73,0.00060547,120]
[321145880,1711908706610,-4649.04,0.00060547,120]
[321145881,1711908706620,-277.13,0.00060547,120]
[321145882,1711908706629,-707.12,0.00060547,120]
[321145883,1711908706639,-2267.81,0.00060547,120]
[321145884,1711908706648,-5133.4,0.00060547,120]
[321145885,1711908706659,-1480.3,0.00060547,120]
[321145886,1711908706669,-805.22,0.00060547,120]
[321145887,1711908706678,-1427.42,0.00060547,120]
[321145888,1711908706688,-2273.08,0.00060547,120]
[321145889,1711908706700,-6661.02,0.00060547,120]
[321145890,1711908706709,-4444.01,0.00060547,120]
[321145891,1711908706719,-642.39,0.00060547,120]
[321145892,1711908706729,-572.95,0.00060547,120]
[321145893,1711908706738,-6431.04,0.00060547,120]
[321145894,1711908706748,-2363.15,0.00060547,120]
[321145895,1711908706758,-1611.27,0.00060547,120]
[321145896,1711908706767,-899.44,0.00060547,120]
[321145897,1711908706776,-1651.19,0.00060547,120]
[321145898,1711908706785,-512.64,0.00060547,120]
[321145899,1711908706795,-1275.53,0.00060547,120]
[321145900,1711908706807,-4862.95,0.00060547,120]
[321145901,1711908706816,-1488.24,0.00060547,120]
[321145902,1711908706826,-1110.2,0.00060547,120]
[321145903,1711908706836,-816.26,0.00060547,120]
[321145904,1711908706847,-669.65,0.00060547,120]
[321145905,1711908706856,-3231.72,0.00060547,120]
[321145906,1711908706867,-642.72,0.00060547,120]
[321145907,1711908706876,-713.19,0.00060547,120]
[321145908,1711908706886,-705.23,0.00060547,120]
[321145909,1711908706895,-2389.97,0.00060547,120]
[321145910,1711908706905,-648.84,0.00060547,120]
[321145911,1711908706915,-1994.62,0.00060547,120]
[321145912,1711908706924,-2619.63,0.00060547,120]
[321145913,1711908706934,-4661.97,0.00060547,120]
[321145914,1711908706943,-3992.88,0.00060547,120]
[321145915,1711908706953,-1467.45,0.00060547,120]
[321145916,1711908706962,-7813.73,0.00060547,120]
[321145917,1711908706972,-2947.07,0.00060547,120]
[321145918,1711908706982,-635.56,0.00060547,120]
[321145919,1711908706991,-595.08,0.00060547,120]
[321145920,1711908707002,-1656.13,0.00060547,120]
[321145921,1711908707012,-697.65,0.00060547,120]
[321145922,1711908707022,-709.24,0.00060547,120]
[321145923,1711908707031,-567.42,0.00060547,120]
[321145924,1711908707041,-729.76,0.00060547,120]
[321145925,1711908707051,-151.0,0.0006063,120]
[321145926,1711908707061,-304.12,0.00060821,120]
[321145927,1711908707070,-664.54,0.00060821,120]
[321145928,1711908707080,-1004.03,0.00060821,120]
[321145929,1711908707090,-804.28,0.00060821,120]
[321145930,1711908707099,-914.67,0.00060821,120]
[321145931,1711908707108,-510.44,0.00060821,120]
[321145932,1711908707118,-1062.57,0.00060821,120]
[321145933,1711908707127,-644.63175783,0.00060821,120]
[321145934,1711908707141,-500.0,0.00060821,120]
[321145935,1711908707161,-980.98,0.00060821,120]
[321145936,1711908707177,-529.82,0.00060821,120]
[321145937,1711908707199,-691.41,0.00060821,120]
[321145938,1711908707218,-535.03,0.00060821,120]
[321145939,1711908707233,-834.12,0.00060821,120]
[321145940,1711908707251,-597.15,0.00060821,120]
[321145941,1711908707271,-2161.52,0.00060821,120]
[321145942,1711908707290,-523.05,0.00060821,120]
[321145943,1711908707307,-851.6,0.00060821,120]
[321145944,1711908707326,-1120.95,0.00060821,120]
[321145945,1711908707344,-481.04,0.00060821,120]
[321145946,1711908707358,-13825.51,0.00060821,120]
[321145947,1711908707376,-4835.83,0.00060821,120]
[321145948,1711908707389,-645.15,0.00060821,120]
[321145949,1711908707405,-1596.31,0.00060821,120]
[321145950,1711908707418,-810.88,0.00060821,120]
[321145951,1711908707433,-10458.37,0.00060821,120]
[321145952,1711908707448,-1071.85,0.00060821,120]
[321145953,1711908707462,-520.56,0.00060821,120]